Workbook

Sheet Sheet1
A4: DCA/CS OF MRPL POLYPROPYLENE
A5: TEL: 022-66951140/50/60 E-Mail:-info@gurukrupaplastics.com
A6: BHIWANDI / AURANGABAD / DAMAN STOCK POINT MANGPOL PP PRICE W.E.F 01.08.2025
A7: LOCATION | B7: PRODUCT | D7: GRADE | F7: BASIC | G7: (-) C D | H7: RATE AFTER DISC. | I7: ADD GST 18% | J7: ADD TCS 0.100% | K7: RATE PER MT
A8: BHIWANDI | B8: RAFFIA/ YARN | C8: PRIME | D8: HR003 | E8: POP011 | F8: 99672 | G8: 1100 | H8: =F8-G8 -> 98572 | I8: =H8*18% -> 17742.96 | J8: =(H8+I8)*0.1% -> 116.31 | K8: =+H8+I8+J8 -> 116431.27
A9: BHIWANDI | B9: RAFFIA/ YARN | C9: NONPRIME | D9: HR003N | E9: POP021 | F9: 98872 | G9: 1100 | H9: 97772 | I9: 17598.96 | J9: 115.37 | K9: 115486.33
A10: BHIWANDI | B10: RAFFIA/ YARN | C10: PRIME | D10: HR005T | E10: POP018 | F10: 98872 | G10: 1100 | H10: 97772 | I10: 17598.96 | J10: 115.37 | K10: 115486.33
A11: BHIWANDI | B11: RAFFIA/ YARN | C11: NONPRIME | D11: HR005TN | E11: POP028 | F11: 98072 | G11: 1100 | H11: 96972 | I11: 17454.96 | J11: 114.43 | K11: 114541.39
A12: BHIWANDI | B12: IM | C12: PRIME | D12: HM012/HM012T | E12: POP012/POP032 | F12: 98589 | G12: 1100 | H12: =F12-G12 -> 97489 | I12: 17548.02 | J12: 115.04 | K12: 115152.06
A13: BHIWANDI | B13: IM | C13: NONPRIME | D13: HM012N | E13: POP022 | F13: 97789 | G13: 1100 | H13: 96689 | I13: 17404.02 | J13: 114.09 | K13: 114207.11
A14: BHIWANDI | B14: IM | C14: PRIME | D14: HM065AT | E14: POP052 | F14: 100850 | G14: 1100 | H14: =F14-G14 -> 99750 | I14: =H14*18% -> 17955 | J14: =(H14+I14)*0.1% -> 117.71 | K14: =+H14+I14+J14 -> 117822.71
A15: BHIWANDI | B15: IM | C15: NON PRIME | D15: MH065NP | E15: POP062 | F15: 100050 | G15: 1100 | H15: 98950 | I15: 17811 | J15: 116.76 | K15: 116877.76
A16: BHIWANDI | B16: TQ FILM | C16: PRIME | D16: HF010 | E16: POP013 | F16: 100700 | G16: 1100 | H16: 99600 | I16: 17928 | J16: 117.53 | K16: 117645.53
A17: BHIWANDI | B17: TQ FILM | C17: NONPRIME | D17: HF010N | E17: POP023 | F17: 99900 | G17: 1100 | H17: 98800 | I17: 17784 | J17: 116.58 | K17: 116700.58
A18: BHIWANDI | B18: CPP FILM | C18: PRIME | D18: HF008T | E18: POP095 | F18: 96972 | G18: 1100 | H18: =F18-G18 -> 95872 | I18: =H18*18% -> 17256.96 | J18: =(H18+I18)*0.1% -> 113.13 | K18: =+H18+I18+J18 -> 113242.09
A19: BHIWANDI | B19: FIBER/LAMI | C19: PRIME | D19: HY035R/35UR | E19: POP014/POP017 | F19: 102210 | G19: 1100 | H19: 101110 | I19: 18199.8 | J19: 119.31 | K19: 119429.11
A20: BHIWANDI | B20: FIBER/LAMI | C20: NONPRIME | D20: HY035RN/35URN | E20: POP024/POP027 | F20: 101410 | G20: 1100 | H20: 100310 | I20: 18055.8 | J20: 118.37 | K20: 118484.17
A21: BHIWANDI | B21: TF | C21: PRIME | D21: HT003T | E21: POP051 | F21: 101173 | G21: 1100 | H21: 100073 | I21: 18013.14 | J21: 118.09 | K21: 118204.23
A22: BHIWANDI | B22: TF | C22: NONPRIME | D22: HT003TN | E22: POP061 | F22: 100373 | G22: 1100 | H22: 99273 | I22: 17869.14 | J22: 117.14 | K22: 117259.28
A23: BHIWANDI | B23: RAFFIA | C23: OG- LOG | D23: 8MFI | E23: POP091 | F23: 93689 | G23: 0 | H23: 93689 | I23: 16864.02 | J23: 110.55 | K23: 110663.57
A24: BHIWANDI | B24: IM- OG | C24: OG- MOG | D24: 8-20MFI | E24: POP092 | F24: 92889 | G24: 0 | H24: =F24-G24 -> 92889 | I24: =H24*18% -> 16720.02 | J24: =(H24+I24)*0.1% -> 109.61 | K24: =+H24+I24+J24 -> 109718.63
A25: BHIWANDI | B25: HOMO - OG | C25: OG- HOG | D25: 20-50MFI | E25: POP093 | F25: 94189 | G25: 0 | H25: 94189 | I25: 16954.02 | J25: 111.14 | K25: 111254.16
A26: BHIWANDI | C26: OG- UHOG | D26: ABOVE-50 MFI | E26: POP094 | F26: 94189 | G26: 0 | H26: 94189 | I26: 16954.02 | J26: 111.14 | K26: 111254.16
A27: DAMAN | B27: RAFFIA/ YARN | C27: PRIME | D27: HR003 | E27: POP011 | F27: 99724 | G27: 1100 | H27: 98624 | I27: 17752.32 | J27: 116.38 | K27: 116492.70
A28: DAMAN | B28: RAFFIA/ YARN | C28: NONPRIME | D28: HR003N | E28: POP021 | F28: 98924 | G28: 1100 | H28: 97824 | I28: 17608.32 | J28: 115.43 | K28: 115547.75
A29: DAMAN | B29: RAFFIA/ YARN | C29: PRIME | D29: HR005T | E29: POP018 | F29: 98924 | G29: 1100 | H29: 97824 | I29: 17608.32 | J29: 115.43 | K29: 115547.75
A30: DAMAN | B30: RAFFIA/ YARN | C30: NONPRIME | D30: HR005TN | E30: POP028 | F30: 98124 | G30: 1100 | H30: 97024 | I30: 17464.32 | J30: 114.49 | K30: 114602.81
A31: DAMAN | B31: IM | C31: PRIME | D31: HM012/HM012T | E31: POP012/POP032 | F31: 98433 | G31: 1100 | H31: 97333 | I31: 17519.94 | J31: 114.85 | K31: 114967.79
A32: DAMAN | B32: IM | C32: NONPRIME | D32: HM012N | E32: POP022 | F32: 97633 | G32: 1100 | H32: 96533 | I32: 17375.94 | J32: 113.91 | K32: 114022.85
A33: DAMAN | B33: IM | C33: PRIME | D33: HM065AT | E33: POP052 | F33: 101069 | G33: 1100 | H33: 99969 | I33: 17994.42 | J33: 117.96 | K33: 118081.38
A34: DAMAN | B34: IM | C34: NON PRIME | D34: MH065NP | E34: POP062 | F34: 100269 | G34: 1100 | H34: 99169 | I34: 17850.42 | J34: 117.02 | K34: 117136.44
A35: DAMAN | B35: TQ FILM | C35: PRIME | D35: HF010 | E35: POP013 | F35: 100598 | G35: 1100 | H35: 99498 | I35: 17909.64 | J35: 117.41 | K35: 117525.05
A36: DAMAN | B36: TQ FILM | C36: NONPRIME | D36: HF010N | E36: POP023 | F36: 99798 | G36: 1100 | H36: 98698 | I36: 17765.64 | J36: 116.46 | K36: 116580.10
A37: DAMAN | B37: CPP FILM | C37: PRIME | D37: HF008T | E37: POP095 | F37: 97124 | G37: 1100 | H37: =F37-G37 -> 96024 | I37: =H37*18% -> 17284.32 | J37: =(H37+I37)*0.1% -> 113.31 | K37: =+H37+I37+J37 -> 113421.63
A38: DAMAN | B38: FIBER/LAMI | C38: PRIME | D38: HY035R/35UR | E38: POP014/POP017 | F38: 102467 | G38: 1100 | H38: 101367 | I38: 18246.06 | J38: 119.61 | K38: 119732.67
A39: DAMAN | B39: FIBER/LAMI | C39: NONPRIME | D39: HY035RN/35URN | E39: POP024/POP027 | F39: 101667 | G39: 1100 | H39: 100567 | I39: 18102.06 | J39: 118.67 | K39: 118787.73
A40: DAMAN | B40: TF | C40: PRIME | D40: HT003T | E40: POP051 | F40: 101302 | G40: 1100 | H40: 100202 | I40: 18036.36 | J40: 118.24 | K40: 118356.60
A41: DAMAN | B41: TF | C41: NONPRIME | D41: HT003TN | E41: POP061 | F41: 100502 | G41: 1100 | H41: 99402 | I41: 17892.36 | J41: 117.29 | K41: 117411.65
A42: DAMAN | B42: RAFFIA | C42: OG- LOG | D42: 8MFI | E42: POP091 | F42: 93533 | G42: 0 | H42: 93533 | I42: 16835.94 | J42: 110.37 | K42: 110479.31
A43: DAMAN | B43: IM- OG | C43: OG- MOG | D43: 8-20MFI | E43: POP092 | F43: 92733 | G43: 0 | H43: 92733 | I43: 16691.94 | J43: 109.42 | K43: 109534.36
A44: DAMAN | B44: HOMO - OG | C44: OG- HOG | D44: 20-50MFI | E44: POP093 | F44: 94033 | G44: 0 | H44: 94033 | I44: 16925.94 | J44: 110.96 | K44: 111069.90
A45: DAMAN | C45: OG- UHOG | D45: ABOVE-50 MFI | E45: POP094 | F45: 94033 | G45: 0 | H45: 94033 | I45: 16925.94 | J45: 110.96 | K45: 111069.90
A46: SILVASSA | B46: RAFFIA/ YARN | C46: PRIME | D46: HR003 | E46: POP011 | F46: 99749 | G46: 1100 | H46: =F46-G46 -> 98649 | I46: =H46*18% -> 17756.82 | J46: =(H46+I46)*0.1% -> 116.41 | K46: =+H46+I46+J46 -> 116522.23
A47: SILVASSA | B47: RAFFIA/ YARN | C47: NONPRIME | D47: HR003N | E47: POP021 | F47: 98949 | G47: 1100 | H47: 97849 | I47: 17612.82 | J47: 115.46 | K47: 115577.28
A48: SILVASSA | B48: RAFFIA/ YARN | C48: PRIME | D48: HR005T | E48: POP018 | F48: 98949 | G48: 1100 | H48: 97849 | I48: 17612.82 | J48: 115.46 | K48: 115577.28
A49: SILVASSA | B49: RAFFIA/ YARN | C49: NONPRIME | D49: HR005TN | E49: POP028 | F49: 98149 | G49: 1100 | H49: 97049 | I49: 17468.82 | J49: 114.52 | K49: 114632.34
A50: SILVASSA | B50: IM | C50: PRIME | D50: HM012/HM012T | E50: POP012/POP032 | F50: 98559 | G50: 1100 | H50: 97459 | I50: 17542.62 | J50: 115.00 | K50: 115116.62
A51: SILVASSA | B51: IM | C51: NONPRIME | D51: HM012N | E51: POP022 | F51: 97759 | G51: 1100 | H51: 96659 | I51: 17398.62 | J51: 114.06 | K51: 114171.68
A52: SILVASSA | B52: IM | C52: PRIME | D52: HM065AT | E52: POP052 | F52: 101069 | G52: 1100 | H52: 99969 | I52: 17994.42 | J52: 117.96 | K52: 118081.38
A53: SILVASSA | B53: IM | C53: NON PRIME | D53: MH065NP | E53: POP062 | F53: 100269 | G53: 1100 | H53: 99169 | I53: 17850.42 | J53: 117.02 | K53: 117136.44
A54: SILVASSA | B54: TQ FILM | C54: PRIME | D54: HF010 | E54: POP013 | F54: 100605 | G54: 1100 | H54: 99505 | I54: 17910.9 | J54: 117.42 | K54: 117533.32
A55: SILVASSA | B55: TQ FILM | C55: NONPRIME | D55: HF010N | E55: POP023 | F55: 99805 | G55: 1100 | H55: 98705 | I55: 17766.9 | J55: 116.47 | K55: 116588.37
A56: SILVASSA | B56: CPP FILM | C56: PRIME | D56: HF008T | E56: POP095 | F56: 97149 | G56: 1100 | H56: 96049 | I56: 17288.82 | J56: 113.34 | K56: 113451.16
A57: SILVASSA | B57: FIBER/LAMI | C57: PRIME | D57: HY035R/35UR | E57: POP014/POP017 | F57: 102463 | G57: 1100 | H57: 101363 | I57: 18245.34 | J57: 119.61 | K57: 119727.95
A58: SILVASSA | B58: FIBER/LAMI | C58: NONPRIME | D58: HY035RN/35URN | E58: POP024/POP027 | F58: 101663 | G58: 1100 | H58: 100563 | I58: 18101.34 | J58: 118.66 | K58: 118783.00
A59: SILVASSA | B59: TF | C59: PRIME | D59: HT003T | E59: POP051 | F59: 101302 | G59: 1100 | H59: 100202 | I59: 18036.36 | J59: 118.24 | K59: 118356.60
A60: SILVASSA | B60: TF | C60: NONPRIME | D60: HT003TN | E60: POP061 | F60: 100502 | G60: 1100 | H60: 99402 | I60: 17892.36 | J60: 117.29 | K60: 117411.65
A61: SILVASSA | B61: RAFFIA | C61: OG- LOG | D61: 8MFI | E61: POP091 | F61: 93659 | G61: 0 | H61: 93659 | I61: 16858.62 | J61: 110.52 | K61: 110628.14
A62: SILVASSA | B62: IM- OG | C62: OG- MOG | D62: 8-20MFI | E62: POP092 | F62: 92859 | G62: 0 | H62: 92859 | I62: 16714.62 | J62: 109.57 | K62: 109683.19
A63: SILVASSA | B63: HOMO - OG | C63: OG- HOG | D63: 20-50MFI | E63: POP093 | F63: 94159 | G63: 0 | H63: 94159 | I63: 16948.62 | J63: 111.11 | K63: 111218.73
A64: SILVASSA | C64: OG- UHOG | D64: ABOVE-50 MFI | E64: POP094 | F64: 94159 | G64: 0 | H64: 94159 | I64: 16948.62 | J64: 111.11 | K64: 111218.73
A65: AURNGABAD | B65: RAFFIA/ YARN | C65: PRIME | D65: HR003 | E65: POP011 | F65: 100443 | G65: 1100 | H65: 99343 | I65: 17881.74 | J65: 117.22 | K65: 117341.96
A66: AURNGABAD | B66: RAFFIA/ YARN | C66: NONPRIME | D66: HR003N | E66: POP021 | F66: 99643 | G66: 1100 | H66: 98543 | I66: 17737.74 | J66: 116.28 | K66: 116397.02
A67: AURNGABAD | B67: RAFFIA/ YARN | C67: PRIME | D67: HR005T | E67: POP018 | F67: 99643 | G67: 1100 | H67: 98543 | I67: 17737.74 | J67: 116.28 | K67: 116397.02
A68: AURNGABAD | B68: RAFFIA/ YARN | C68: NONPRIME | D68: HR005TN | E68: POP028 | F68: 98843 | G68: 1100 | H68: 97743 | I68: 17593.74 | J68: 115.34 | K68: 115452.08
A69: AURNGABAD | B69: IM | C69: PRIME | D69: HM012/HM012T | E69: POP012/POP032 | F69: 99216 | G69: 1100 | H69: 98116 | I69: 17660.88 | J69: 115.78 | K69: 115892.66
A70: AURNGABAD | B70: IM | C70: NONPRIME | D70: HM012N | E70: POP022 | F70: 98416 | G70: 1100 | H70: 97316 | I70: 17516.88 | J70: 114.83 | K70: 114947.71
A71: AURNGABAD | B71: IM | C71: PRIME | D71: HM065AT | E71: POP052 | F71: 101703 | G71: 1100 | H71: 100603 | I71: 18108.54 | J71: 118.71 | K71: 118830.25
A72: AURNGABAD | B72: IM | C72: NON PRIME | D72: MH065NP | E72: POP062 | F72: 100903 | G72: 1100 | H72: =F72-G72 -> 99803 | I72: =H72*18% -> 17964.54 | J72: =(H72+I72)*0.1% -> 117.77 | K72: =+H72+I72+J72 -> 117885.31
A73: AURNGABAD | B73: TQ FILM | C73: PRIME | D73: HF010 | E73: POP013 | F73: 101229 | G73: 1100 | H73: 100129 | I73: 18023.22 | J73: 118.15 | K73: 118270.37
A74: AURNGABAD | B74: TQ FILM | C74: NONPRIME | D74: HF010N | E74: POP023 | F74: 100429 | G74: 1100 | H74: 99329 | I74: 17879.22 | J74: 117.21 | K74: 117325.43
A75: AURNGABAD | B75: CPP FILM | C75: PRIME | D75: HF008T | E75: POP095 | F75: 97643 | G75: 1100 | H75: =F75-G75 -> 96543 | I75: =H75*18% -> 17377.74 | J75: =(H75+I75)*0.1% -> 113.92 | K75: =+H75+I75+J75 -> 114034.66
A76: AURNGABAD | B76: FIBER/LAMI | C76: PRIME | D76: HY035R/35UR | E76: POP014/POP017 | F76: 103144 | G76: 1100 | H76: 102044 | I76: 18367.92 | J76: 120.41 | K76: 120532.33
A77: AURNGABAD | B77: FIBER/LAMI | C77: NONPRIME | D77: HY035RN/35URN | E77: POP024/POP027 | F77: 102344 | G77: 1100 | H77: 101244 | I77: 18223.92 | J77: 119.47 | K77: 119587.39
A78: AURNGABAD | B78: TF | C78: PRIME | D78: HT003T | E78: POP051 | F78: 101851 | G78: 1100 | H78: 100751 | I78: 18135.18 | J78: 118.89 | K78: 119005.07
A79: AURNGABAD | B79: TF | C79: NONPRIME | D79: HT003TN | E79: POP061 | F79: 101051 | G79: 1100 | H79: 99951 | I79: 17991.18 | J79: 117.94 | K79: 118060.12
A80: AURNGABAD | B80: RAFFIA | C80: OG- LOG | D80: 8MFI | E80: POP091 | F80: 94316 | G80: 0 | H80: =F80-G80 -> 94316 | I80: =H80*18% -> 16976.88 | J80: =(H80+I80)*0.1% -> 111.29 | K80: =+H80+I80+J80 -> 111404.17
A81: AURNGABAD | B81: IM- OG | C81: OG- MOG | D81: 8-20MFI | E81: POP092 | F81: 93516 | G81: 0 | H81: 93516 | I81: 16832.88 | J81: 110.35 | K81: 110459.23
A82: AURNGABAD | B82: HOMO - OG | C82: OG- HOG | D82: 20-50MFI | E82: POP093 | F82: 94816 | G82: 0 | H82: 94816 | I82: 17066.88 | J82: 111.88 | K82: 111994.76
A83: AURNGABAD | C83: OG- UHOG | D83: ABOVE-50 MFI | E83: POP094 | F83: 94816 | G83: 0 | H83: 94816 | I83: 17066.88 | J83: 111.88 | K83: 111994.76
A84: SURAT | B84: IM | C84: PRIME | D84: HM012/HM012T | E84: POP012/POP032 | F84: 98416 | G84: 1100 | H84: 97316 | I84: 17516.88 | J84: 114.83 | K84: 114947.71
A85: SURAT | B85: IM | C85: NONPRIME | D85: HM012N | E85: POP022 | F85: 97616 | G85: 1100 | H85: 96516 | I85: 17372.88 | J85: 113.89 | K85: 114002.77
A86: SURAT | B86: FIBER/LAMI | C86: PRIME | D86: HY035R/35UR | E86: POP014/POP017 | F86: 102369 | G86: 1100 | H86: 101269 | I86: 18228.42 | J86: 119.50 | K86: 119616.92
A89: Monthly volume Based Discount
A90: SL.NO | B90: Volume lifted in the Calendar Month (MT) | C90: Discount Amount (Rs/MT) | E90: MOU SLAB
A91: A | B91: > =5 | C91: 200 | E91: Monthly | F91: 1100
A92: B | B92: > =9 | C92: 450 | E92: Yearly | F92: 500
A93: C | B93: > =25 | C93: 500 | E93: TOTAL | F93: 1600
A94: D | B94: > =50 | C94: 550
A95: E | B95: > =100 | C95: 650
A96: F | B96: > =200 | C96: 750
A97: G | B97: > =300 | C97: 850
A98: H | B98: > =400 | C98: 950
A99: I | B99: > =500 | C99: 1000
A100: J | B100: > =600 | C100: 1050
A101: K | B101: > =700 | C101: 1100
A102: L | B102: > =800 | C102: 1200
A103: NOTE: Transportation & Insurance charges will be extra
A104: MATERIAL CAN BE DISPATCHED THROUGH YOUR TRANSPORTER ALSO. *There is no Company Gurantee for OG material * Price is as per despatch date.
A105: *Unloading at customer/receiver premises shall be arranged by customer/receiver **For Ex-Depot sales, customer/buyer shall be responsible for arranging transportation
A106: from CS depot to its destination and shall pay freight and discharge GST liabilities
A107: * Prompt payment discount of Rs. 1100/-MT is applicable on pre GST basis on Ex Plant Sales and Ex CS Depot Sales. The prompt payment discount is applicable to prime and nonprime grades only
A108: Buyer herby undertakes at warrants to comply, at all times with the applicable lawas including but not limited to the plastic waste Management rules 2016, as amended from time to time and notification and directives issued thereunder ( PWM RULES), in relation to the use of the goods . Buyer expressly undertakes and warrants the the plastic raw material purchased shall not be used directly and indirectly in production of banned Single Use Plastic ( SUP) items, listed PWM Rules
A109: Marketing Head
A110: Mr.Vasant Pawar
A111: Cell:+91 9324251160/8779344733
A112: E-mail: vasantgurukrupa@gmail.com
A113: Cell:+91 9324251160/8779344733
A114: E-mail: vasantgurukrupa@gmail.com
A115: vasant@gurukrupaplastics.com
